fUSD/lending_fUSD_20260419
["ID","MTS","AMOUNT","RATE_DAILY","PERIOD"]
[420835685,1776607844175,-25000.0,0.0002299,7]
[420835686,1776607844185,-25000.0,0.00022999,7]
[420835687,1776607844195,-283.0,0.00023,2]
[420835688,1776607844205,-200.0,0.00023,2]
[420835689,1776607844214,-2210.0,0.00023,2]
[420835690,1776607844223,-336.0,0.00023,2]
[420835691,1776607844233,-319.0,0.00023,2]
[420835692,1776607844242,-370.0,0.00023,2]
[420835693,1776607844251,-187.0,0.00023,2]
[420835694,1776607844261,-478.0,0.00023,2]
[420835695,1776607844270,-903.0,0.00023,2]
[420835696,1776607844280,-25000.0,0.00023007,7]
[420835697,1776607844290,-25000.0,0.00023016,7]
[420835698,1776607844299,-302.34,0.00023024,2]
[420835699,1776607844309,-25000.0,0.00023025,7]
[420835700,1776607844319,-25000.0,0.00023034,7]
[420835701,1776607844329,-160.0,0.00023034,7]
[420835702,1776607844339,-25000.0,0.00023043,7]
[420835703,1776607844348,-25000.0,0.00023051,7]
[420835704,1776607844358,-25000.0,0.0002306,7]
[420835705,1776607844367,-25000.0,0.00023069,7]
[420835706,1776607844376,-251.64,0.00023071,30]
[420835707,1776607844386,-25000.0,0.00023078,7]
[420835708,1776607844395,-25000.0,0.00023087,7]
[420835709,1776607844405,-25000.0,0.00023095,7]
[420835710,1776607844414,-2240.21643142,0.000231,2]
[420835711,1776607844424,-1767.32019504,0.00023149,2]
[420835712,1776607844433,-1400.0,0.00023256,7]
[420835713,1776607844443,-500.0,0.00023256,7]
[420835714,1776607844452,-730.1,0.00023362,2]
[420835715,1776607844462,-500.0,0.0002342,2]
[420835716,1776607844472,-861.25,0.000235,14]
[420835717,1776607844481,-283.0,0.00024,2]
[420835718,1776607844491,-200.0,0.00024,2]
[420835719,1776607844500,-2210.0,0.00024,2]
[420835720,1776607844510,-336.0,0.00024,2]
[420835721,1776607844520,-319.0,0.00024,2]
[420835722,1776607844529,-370.0,0.00024,2]
[420835723,1776607844538,-126160.28,0.00024,7]
[420835724,1776607844548,-187.0,0.00024,2]
[420835725,1776607844558,-478.0,0.00024,2]
[420835726,1776607844568,-903.0,0.00024,2]
[420835727,1776607844578,-212.25086241,0.0002411,2]
[420835728,1776607844587,-730.1,0.00024131,2]
[420835729,1776607844596,-3755.064,0.00024143,6]
[420835730,1776607844606,-165.748,0.00024143,6]
[420835731,1776607844615,-293.58,0.00024149,30]
[420835732,1776607844624,-1400.0,0.00024352,7]
[420835733,1776607844634,-726.87,0.0002438,60]
[420835734,1776607844647,-1503.35125981,0.000244,7]
[420835735,1776607844658,-231.97897994,0.00024402,2]
[420835736,1776607844667,-881.7232044,0.00024538,2]
[420835737,1776607844677,-152.0,0.00024541,7]
[420835738,1776607844686,-152.0,0.00024548,7]
[420835739,1776607844695,-152.0,0.00024548,7]
[420835740,1776607844705,-152.0,0.00024555,7]
[420835741,1776607844716,-152.0,0.00024555,7]
[420835742,1776607844726,-152.0,0.00024555,7]
[420835743,1776607844735,-1000.0,0.00024633,2]
[420835744,1776607844745,-150.75842512,0.00024649,2]
[420835745,1776607844755,-1535.44379,0.0002465,2]
[420835746,1776607844764,-1535.44379,0.0002465,2]
[420835747,1776607844775,-1535.4438,0.0002465,2]
[420835748,1776607844785,-1000.0,0.00024658,2]
[420835749,1776607844796,-150.0,0.00024658,2]
[420835750,1776607844805,-1000.0,0.00024675,2]
[420835751,1776607844815,-500.0,0.000247,2]
[420835752,1776607844824,-192.86,0.000248,11]
[420835753,1776607844834,-701.70932772,0.000248,2]
[420835754,1776607844844,-429.65401431,0.000248,4]
[420835755,1776607844853,-1000.0,0.00024855,2]
[420835756,1776607844863,-152.0,0.00024894,7]
[420835757,1776607844874,-152.0,0.00024894,7]
[420835758,1776607844885,-152.0,0.00024894,7]
[420835759,1776607844894,-152.0,0.00024894,7]
[420835760,1776607844903,-152.0,0.00024894,7]
[420835761,1776607844913,-152.0,0.00024894,7]
[420835762,1776607844923,-730.1,0.000249,2]
[420835763,1776607844932,-1535.44379,0.000249,2]
[420835764,1776607844941,-1535.4438,0.000249,2]
[420835765,1776607844951,-1535.4438,0.000249,2]
[420835766,1776607844962,-356788.52921903,0.000249,2]
[420835767,1776607844977,-125464.49530016,0.000249,2]
[420835771,1776607847026,-17365.7200698,0.000249,2]
[420835772,1776607847039,-10454.43499668,0.000249,2]
[420835773,1776607847322,-745.31425954,0.000249,2]
[420835774,1776607847551,-1631.81420562,0.00018686,2]
[420835775,1776607847570,-2902.61816696,0.00018686,2]
[420835776,1776607847581,-416.0,0.00022028,2]
[420835777,1776607847591,-40660.44500679,0.000249,2]
[420835778,1776607847600,-152.0,0.00024919,7]
[420835779,1776607847610,-152.0,0.00024919,7]
[420835780,1776607847621,-152.0,0.00024919,7]
[420835781,1776607847631,-152.0,0.00024919,7]
[420835782,1776607847641,-152.0,0.00024919,7]
[420835783,1776607847651,-152.0,0.00024919,7]
[420835784,1776607847662,-235.77,0.00025,2]
[420835785,1776607847671,-446.0,0.00025,2]
[420835786,1776607847680,-2463.82,0.00025,2]
[420835787,1776607847690,-12540.01964058,0.00025,2]
[420835788,1776607847701,-237459.98035942,0.00025,2]
[420835789,1776607847711,-48433.28858863,0.00025,2]
[420835790,1776607847726,-3547.43151558,0.00025,2]
[420835791,1776607851198,150.0,0.000157,120]
[420835792,1776607892698,696.203934,0.0002744,120]
[420835793,1776607892758,474.441291,0.0002744,120]
[420835794,1776607925905,237.220645,0.00026852,120]
[420835795,1776607947528,400.0,0.0003287,120]
[420835796,1776607953873,14713.180563,0.00025407,120]
[420835797,1776607958136,202.0,0.0003287,120]
[420835798,1776607960138,204.0,0.0003287,120]
[420835799,1776607973002,500.0,0.0003,120]
[420835800,1776607987327,445.0,0.00029957,120]
[420835801,1776607993353,400.0,0.00029957,120]
[420835802,1776607994349,400.0,0.00029957,120]
[420835803,1776607995274,388.0,0.00029957,120]
[420835804,1776608043172,150.0,0.000157,120]
[420835805,1776608057898,500.0,0.000315,120]
[420835806,1776608085050,1300.0,0.00029957,120]
[420835807,1776608086000,1300.0,0.00029957,120]
[420835808,1776608086907,1208.0,0.00029957,120]
[420835809,1776608095791,900.0,0.00032712,120]
[420835810,1776608095857,900.0,0.00032712,120]
[420835811,1776608095922,900.0,0.00032712,120]
[420835812,1776608095983,900.0,0.00032712,120]
[420835813,1776608096033,900.0,0.00032712,120]
[420835814,1776608096173,900.0,0.00032712,120]
[420835815,1776608096718,900.0,0.00032712,120]
[420835816,1776608096961,900.0,0.00032712,120]
[420835817,1776608097221,900.0,0.00032712,120]
[420835818,1776608097471,900.0,0.00032712,120]
[420835819,1776608097721,900.0,0.00032712,120]
[420835820,1776608098182,900.0,0.00032712,120]
[420835821,1776608098509,900.0,0.00032712,120]
[420835822,1776608098759,796.0,0.00032712,120]
[420835823,1776608099039,900.0,0.00032849,120]
[420835824,1776608099343,900.0,0.00032849,120]
[420835825,1776608099599,900.0,0.00032849,120]
[420835826,1776608099893,900.0,0.00032849,120]
[420835827,1776608100138,900.0,0.00032849,120]
[420835828,1776608100406,900.0,0.00032849,120]
[420835829,1776608100694,900.0,0.00032849,120]
[420835830,1776608101173,900.0,0.00032849,120]
[420835831,1776608101478,900.0,0.00032849,120]
[420835832,1776608101742,900.0,0.00032849,120]
[420835833,1776608102003,900.0,0.00032849,120]
[420835834,1776608102258,900.0,0.00032849,120]
[420835835,1776608102506,900.0,0.00032849,120]
[420835836,1776608102764,900.0,0.00032849,120]
[420835837,1776608103017,900.0,0.00032849,120]
[420835838,1776608103267,900.0,0.00032849,120]
[420835839,1776608103740,900.0,0.00032849,120]
[420835840,1776608103996,900.0,0.00032849,120]
[420835841,1776608104255,900.0,0.00032849,120]
[420835842,1776608104536,900.0,0.00032849,120]
[420835843,1776608104802,900.0,0.00032849,120]
[420835844,1776608105078,900.0,0.00032849,120]
[420835845,1776608105347,1028.0,0.00032849,120]
[420835846,1776608111567,326.0,0.00025647,120]
[420835847,1776608113074,326.0,0.00026929,120]
[420835848,1776608114371,326.0,0.00028275,120]
[420835849,1776608115892,326.0,0.00029689,120]
[420835850,1776608117206,326.0,0.00031173,120]
[420835851,1776608121424,326.0,0.00032732,120]
[420835852,1776608159057,175.0,0.00032712,120]
[420835853,1776608159199,175.0,0.00032712,120]
[420835854,1776608159842,175.0,0.00032712,120]
[420835855,1776608159911,175.0,0.00032712,120]
[420835856,1776608159967,175.0,0.00032712,120]
[420835857,1776608160061,175.0,0.00032712,120]
[420835858,1776608167488,290.0,0.00029167,120]
[420835859,1776608173636,200.0,0.00029,120]
[420835860,1776608174101,284.0,0.00029,120]
[420835861,1776608180222,175.0,0.00032712,120]
[420835862,1776608184672,5386.075027,0.0002254,120]
[420835863,1776608189679,2725.6471483,0.0003287,120]
[420835864,1776608202765,175.0,0.00032712,120]
[420835865,1776608203095,175.0,0.00032712,120]
[420835866,1776608203580,175.0,0.00032712,120]
[420835867,1776608203839,175.0,0.00032712,120]
[420835868,1776608204157,175.0,0.00032712,120]
[420835869,1776608204436,224.0,0.00032712,120]
[420835870,1776608204742,175.0,0.00032712,120]
[420835871,1776608204979,175.0,0.00032849,120]
[420835872,1776608205260,175.0,0.00032849,120]
[420835873,1776608205531,175.0,0.00032849,120]
[420835874,1776608205793,175.0,0.00032849,120]
[420835875,1776608206284,175.0,0.00032849,120]
[420835876,1776608206559,175.0,0.00032849,120]
[420835877,1776608207078,175.0,0.00032849,120]
[420835878,1776608207348,175.0,0.00032849,120]
[420835879,1776608207615,175.0,0.00032849,120]
[420835880,1776608207918,175.0,0.00032849,120]
[420835881,1776608208262,175.0,0.00032849,120]
[420835882,1776608211762,175.0,0.00032849,120]
[420835883,1776608211852,175.0,0.00032849,120]
[420835884,1776608211951,175.0,0.00032849,120]
[420835885,1776608212008,175.0,0.00032849,120]
[420835886,1776608212073,175.0,0.00032849,120]
[420835887,1776608212150,175.0,0.00032849,120]
[420835888,1776608212234,175.0,0.00032849,120]
[420835889,1776608212392,175.0,0.00032849,120]
[420835890,1776608212450,175.0,0.00032849,120]
[420835891,1776608212534,175.0,0.00032849,120]
[420835892,1776608212596,175.0,0.00032849,120]
[420835893,1776608212659,316.0,0.00032849,120]
[420835894,1776608228395,150.0,0.000157,120]
[420835895,1776608244867,1000.0,0.000327,120]
[420835896,1776608247203,1456.0,0.00032877,120]
[420835897,1776608252569,150.0,0.00032712,120]
[420835898,1776608253159,150.0,0.00032712,120]
[420835899,1776608253266,200.0,0.00032712,120]
[420835900,1776608253342,150.0,0.00032849,120]
[420835901,1776608253533,150.0,0.00032849,120]
[420835902,1776608253790,150.0,0.00032849,120]
[420835903,1776608254053,150.0,0.00032849,120]
[420835904,1776608254412,233.0,0.00032849,120]
[420835905,1776608277369,1000.0,0.000328,120]
[420835906,1776608290086,150.0,0.00032849,120]
[420835907,1776608290230,184.0,0.00032849,120]
[420835908,1776608291745,1934.89,0.00032877,120]
[420835909,1776608294120,160.0,0.000328,120]
[420835910,1776608296701,213.0,0.00028582,120]
[420835911,1776608304373,1000.0,0.000328,120]
[420835912,1776608304683,500.0,0.0003287,120]
[420835913,1776608319534,1259.17,0.0003269,120]
[420835914,1776608329433,1006.0,0.000328,120]
[420835915,1776608333494,190.0,0.000328,120]
[420835916,1776608348109,193.0,0.000328,120]
[420835917,1776608359285,1597.21,0.00032877,120]
[420835918,1776608388346,257.39191255,0.00026837,120]
[420835919,1776608400892,150.0,0.00019272,120]
[420835920,1776608401651,210.53958077,0.00019272,120]
[420835921,1776608405870,1597.0,0.00032877,120]
[420835922,1776608411095,1259.17,0.0003259,120]
[420835923,1776608418040,150.0,0.000157,120]
[420835924,1776608433272,1259.17,0.000325,120]
[420835925,1776608446102,230.0,0.00028,120]
[420835926,1776608450023,150.0,0.00028,120]
[420835927,1776608464015,-3049.765551,7.945e-05,2]
[420835928,1776608464045,-150.0,8.22e-05,2]
[420835929,1776608464080,-150.0,8.467e-05,2]
[420835930,1776608464111,-202.66,8.52e-05,2]
[420835931,1776608464141,-250.0,8.74e-05,2]
[420835932,1776608464171,-193.0,8.74e-05,2]
[420835933,1776608464201,-250.0,8.74e-05,2]
[420835934,1776608464232,-150.0,8.767e-05,2]
[420835935,1776608464263,-150.0,9.12e-05,2]
[420835936,1776608464294,-150.0,9.42e-05,2]
[420835937,1776608464324,-150.0,9.72e-05,2]
[420835938,1776608464354,-49.158898,9.863e-05,2]
[420835939,1776608464563,-210.841102,9.863e-05,2]
[420835940,1776608476783,-162.9629,0.0001,2]
[420835941,1776608476813,-150.0,0.0001002,2]
[420835942,1776608476840,-1281.24,0.00010079,2]
[420835943,1776608476869,-150.0,0.0001032,2]
[420835944,1776608476898,-1446.849223,0.00010506,2]
[420835945,1776608476928,-1500.0,0.00010559,2]
[420835946,1776608476959,-150.0,0.0001062,2]
[420835947,1776608477078,-317.905754,0.00010725,2]
[420835948,1776608480333,3147.91,0.00032688,120]
[420835949,1776608531073,211.0,0.000285,120]
[420835950,1776608540843,3147.91,0.00032688,120]
[420835951,1776608579569,3147.91,0.0003269,120]
[420835952,1776608605149,150.0,0.000157,120]
[420835953,1776608631879,3147.91,0.0003269,120]
[420835954,1776608649574,3147.91,0.0003269,120]
[420835955,1776608659718,250.0,0.000278,120]
[420835956,1776608660517,364.0,0.000278,120]
[420835957,1776608697511,4000.0,0.00032876,120]
[420835958,1776608703250,165.0,0.00032149,120]
[420835959,1776608726425,1441.2,0.00032192,120]
[420835960,1776608730628,1156.85,0.00027899,120]
[420835961,1776608730858,1156.85,0.00029199,120]
[420835962,1776608731805,1156.85,0.00029799,120]
[420835963,1776608732108,1156.85,0.00029799,120]
[420835964,1776608732307,1156.85,0.00029799,120]
[420835965,1776608732506,1156.85,0.00029799,120]
[420835966,1776608735874,1156.85,0.00029799,120]
[420835967,1776608735917,1156.85,0.00029799,120]
[420835968,1776608735974,1156.85,0.00029799,120]
[420835969,1776608736022,1156.85,0.00029799,120]
[420835970,1776608736072,1156.85,0.00029799,120]
[420835971,1776608736128,1156.85,0.00029799,120]
[420835972,1776608736170,1156.85,0.00029799,120]
[420835973,1776608736308,1156.85,0.00029799,120]
[420835974,1776608736359,1156.85,0.00029799,120]
[420835975,1776608736423,1156.85,0.00029799,120]
[420835976,1776608736556,1156.85,0.00029799,120]
[420835977,1776608736624,1156.85,0.00029799,120]
[420835978,1776608736678,1156.85,0.00029799,120]
[420835979,1776608736759,1156.85,0.00029799,120]
[420835980,1776608736801,1156.98054637,0.00029799,120]
[420835981,1776608740005,3334.88799617,0.0003287,120]
[420835982,1776608743121,500.0,0.00032877,120]
[420835983,1776608744110,500.0,0.00032877,120]
[420835984,1776608745714,500.0,0.00032877,120]
[420835985,1776608748917,500.0,0.00032877,120]
[420835986,1776608749008,500.0,0.00032877,120]
[420835987,1776608749158,500.0,0.00032877,120]
[420835988,1776608749587,500.0,0.00032877,120]
[420835989,1776608750495,500.0,0.00032877,120]
[420835990,1776608751384,500.0,0.00032877,120]
[420835991,1776608753130,500.0,0.00032877,120]
[420835992,1776608754306,500.0,0.00032877,120]
[420835993,1776608755901,500.0,0.00032877,120]
[420835994,1776608768083,150.0,0.00010237,2]
[420835995,1776608771273,211.0,0.00027228,120]
[420835996,1776608778168,3000.0,0.00032876,120]
[420835997,1776608789736,252.544849,0.00010397,2]
[420835998,1776608790589,150.0,0.000143,120]
[420835999,1776608828803,1000.0,0.00032876,120]
[420836000,1776608834367,260.0,9.863e-05,2]
[420836001,1776608835810,9337.465151,0.00010389,2]
[420836002,1776608835832,10000.01,0.00010389,2]
[420836003,1776608835854,10000.01,0.00010389,2]
[420836004,1776608835876,10000.01,0.00010389,2]
[420836005,1776608835897,10000.01,0.00010389,2]
[420836006,1776608835918,10000.01,0.00010389,2]
[420836007,1776608835940,10000.01,0.00010389,2]
[420836008,1776608835962,10000.01,0.00010389,2]
[420836009,1776608835983,10000.01,0.00010389,2]
[420836010,1776608836005,10000.01,0.00010389,2]
[420836011,1776608883728,250.0,0.00032877,120]
[420836012,1776608887506,3000.0,0.00032877,120]
[420836013,1776608887933,3172.670484,7.945e-05,2]
[420836014,1776608893655,250.0,0.00032877,120]
[420836015,1776608894069,550.0,0.000257,120]
[420836016,1776608894529,550.0,0.000257,120]
[420836017,1776608894626,500.0,0.0003287,120]
[420836018,1776608895380,423.0,0.000257,120]
[420836019,1776608899269,200.0,0.00032877,120]
[420836020,1776608921546,1000.0,0.00032877,120]
[420836021,1776608938671,1000.0,0.00032877,120]
[420836022,1776608960231,562.471203,0.0003287,120]
[420836023,1776608974759,200.0,0.00025697,120]
[420836024,1776608975963,275.0,0.00025697,120]
[420836025,1776608977147,150.0,0.000143,120]
[420836026,1776608989190,1000.0,0.00032877,120]
[420836027,1776608999082,178.3,0.00032876,120]
[420836028,1776608999797,299.0,0.00032877,120]
[420836029,1776609021496,1000.0,0.00032877,120]
[420836039,1776609031861,-150.0,9.864e-05,2]
[420836040,1776609031870,-150.0,0.00010049,2]
[420836041,1776609031879,-245.661846,0.00010289,2]
[420836042,1776609031888,-208.85,0.00010308,2]
[420836043,1776609031899,-245.661846,0.00010319,2]
[420836044,1776609031908,-245.661846,0.00010349,2]
[420836045,1776609031918,-1200.0,0.00010388,2]
[420836046,1776609031927,-300.0,0.00010388,2]
[420836047,1776609031936,-150.0,0.00010388,2]
[420836048,1776609031946,-86040.774849,0.00010389,2]
[420836049,1776609031955,-1925.76,0.00010415,2]
[420836050,1776609031968,-150.0,0.00010449,2]
[420836051,1776609031977,-200.0,0.00010568,2]
[420836052,1776609031987,-150.0,0.00010586,2]
[420836053,1776609031996,-1891.61,0.00010592,2]
[420836054,1776609032005,-818.6,0.00010624,2]
[420836055,1776609032015,-150.0,0.00010726,2]
[420836056,1776609032024,-150.0,0.00010726,2]
[420836057,1776609032035,-201.52,0.00010738,2]
[420836058,1776609032044,-191.43,0.00010738,2]
[420836059,1776609032055,-184.72,0.00010738,2]
[420836060,1776609032064,-2000.0,0.00010856,2]
[420836061,1776609032074,-150.0,0.0001092,2]
[420836062,1776609032084,-160.87202219,0.00010959,2]
[420836063,1776609032093,-3240.0,0.00010959,2]
[420836064,1776609032103,-150.0,0.00011236,2]
[420836065,1776609032112,-4420.38364617,0.00011265,2]
[420836066,1776609032121,-600.0,0.00011339,2]
[420836067,1776609032133,-600.0,0.00011339,2]
[420836068,1776609032143,-600.0,0.00011339,2]
[420836070,1776609032153,-600.0,0.00011339,2]
[420836072,1776609032162,-600.0,0.00011339,2]
[420836074,1776609032172,-250.0,0.00011339,2]
[420836075,1776609032181,-255.0,0.00011406,2]
[420836076,1776609032190,-1680.0,0.00011427,2]
[420836077,1776609032199,-195.0,0.00011428,2]
[420836078,1776609032208,-195.0,0.00011428,2]
[420836079,1776609032218,-195.0,0.00011428,2]
[420836080,1776609032227,-195.0,0.00011428,2]
[420836081,1776609032236,-195.0,0.00011428,2]
[420836083,1776609032246,-3713.3192,0.0001144,2]
[420836085,1776609032255,-2500.0,0.0001144,2]
[420836087,1776609032264,-167.7548,0.0001144,2]
[420836089,1776609032274,-3728.30854139,0.0001144,2]
[420836091,1776609032283,-500.0,0.00011533,2]
[420836093,1776609032292,-151.0,0.00011533,2]
[420836095,1776609032301,-500.0,0.00011533,2]
[420836097,1776609032310,-151.0,0.00011533,2]
[420836098,1776609032322,-500.0,0.00011533,2]
[420836100,1776609032331,-151.0,0.00011533,2]
[420836102,1776609032340,-500.0,0.00011533,2]
[420836105,1776609032350,-151.0,0.00011533,2]
[420836106,1776609032359,-200.0,0.00011533,2]
[420836108,1776609032368,-500.0,0.00011533,2]
[420836110,1776609032377,-151.0,0.00011533,2]
[420836112,1776609032386,-151.0,0.00011533,2]
[420836114,1776609032396,-500.0,0.00011533,2]
[420836116,1776609032406,-151.0,0.00011533,2]
[420836118,1776609032415,-500.0,0.00011533,2]
[420836120,1776609032425,-151.0,0.00011533,2]
[420836122,1776609032435,-500.0,0.00011533,2]
[420836124,1776609032445,-151.0,0.00011533,2]
[420836126,1776609032456,-500.0,0.00011533,2]
[420836128,1776609032466,-151.0,0.00011533,2]
[420836130,1776609032476,-151.0,0.00011533,2]
[420836132,1776609032486,-500.0,0.00011533,2]
[420836134,1776609032495,-151.0,0.00011533,2]
[420836136,1776609032505,-151.0,0.00011533,2]
[420836138,1776609032517,-500.0,0.00011533,2]
[420836140,1776609032526,-511.72246464,0.00011533,2]
[420836142,1776609032536,-500.0,0.00011533,2]
[420836144,1776609032545,-151.34953961,0.00011533,2]
[420836146,1776609032560,-151.0,0.00011533,2]
[420836148,1776609032570,-500.0,0.00011538,2]
[420836150,1776609032580,-500.0,0.00011539,2]
[420836152,1776609032590,-500.0,0.00011539,2]
[420836154,1776609032599,-500.0,0.00011539,2]
[420836156,1776609032609,-500.0,0.00011539,2]
[420836157,1776609032619,-441.57849995,0.00011539,2]
[420836158,1776609032629,-231611.1879,0.0001154,2]
[420836159,1776609032638,-1998.27299896,0.0001154,2]
[420836160,1776609032654,-332.7359301,0.0001154,2]
[420836161,1776609032665,-467.37976216,0.0001154,2]
[420836162,1776609032676,-598.76676708,0.0001154,2]
[420836163,1776609032688,-499.50294632,0.0001154,2]
[420836164,1776609032710,-17289.41206943,0.0001154,2]
[420836165,1776609032723,-28774.06812984,0.0001154,2]
[420836166,1776609032836,-164.9062046,0.00011539,2]
[420836167,1776609032846,-402.73608259,0.00011539,2]
[420836168,1776609032855,-500.0,0.00011539,2]
[420836169,1776609032865,-108736.20429611,0.0001154,2]
[420836170,1776609032874,-5700.96731301,0.0001154,2]
[420836171,1776609032884,-506.35109511,0.00011573,2]
[420836172,1776609032893,-500.0,0.00011573,2]
[420836173,1776609032903,-500.0,0.00011573,2]
[420836174,1776609032913,-500.0,0.00011573,2]
[420836175,1776609032922,-500.0,0.00011573,2]
[420836176,1776609032931,-500.0,0.00011573,2]
[420836177,1776609032941,-500.0,0.00011573,2]
[420836178,1776609032950,-500.0,0.00011573,2]
[420836179,1776609032960,-6086.19900728,0.0001164,2]
[420836180,1776609032971,-756.18617286,0.0001164,2]
[420836181,1776609033121,-500.0,0.00011539,2]
[420836182,1776609033130,-1110.89109739,0.0001164,2]
[420836183,1776609033141,-8386.4612623,0.0001164,2]
[420836199,1776609039917,-378.7658,0.0001144,2]
[420836200,1776609039926,-122.93420008,0.00011539,2]
[420836201,1776609039942,-37.45104225,0.00011539,2]
[420836202,1776609039951,-500.0,0.00011539,2]
[420836203,1776609039961,-581.30467712,0.00011539,2]
[420836204,1776609039971,-1859.23761027,0.0001164,2]
[420836205,1776609039982,-888.03614662,0.0001164,2]
[420836206,1776609040001,-436.92300233,0.0001164,2]
[420836207,1776609040013,-542.46609112,0.0001164,2]
[420836208,1776609040031,-11890.46956227,0.0001164,2]
[420836209,1776609040042,-2450.15674466,0.0001164,2]
[420836210,1776609040294,-967.8,0.0001164,2]
[420836211,1776609040381,152.0,0.00015667,30]
[420836212,1776609040415,-18034.4759942,0.0001164,2]
[420836213,1776609040425,-250.0,0.00011671,2]
[420836214,1776609040434,-250.0,0.00011671,2]
[420836215,1776609040443,-250.0,0.00011671,2]
[420836216,1776609040453,-300.0,0.00011671,2]
[420836217,1776609040463,-2692.31,0.0001179,2]
[420836218,1776609040472,-500.0,0.00011812,2]
[420836219,1776609040481,-200.0,0.00012081,2]
[420836220,1776609040491,-500.0,0.00012086,2]
[420836221,1776609040500,-500.62439048,0.00012121,2]
[420836222,1776609040510,-1000.0,0.00012121,2]
[420836223,1776609040519,-1000.0,0.00012121,2]
[420836225,1776609040528,-1001.65549657,0.00012121,2]
[420836227,1776609040537,-637.99582549,0.00012121,2]
[420836229,1776609040547,-1005.90227046,0.00012121,2]
[420836231,1776609040556,-1000.0,0.00012121,2]
[420836233,1776609040565,-185.16,0.00012148,2]
[420836235,1776609040575,-500.50479008,0.00012195,2]
[420836237,1776609040584,-2000.0,0.00012213,2]
[420836239,1776609040593,-151.44,0.00012215,2]
[420836240,1776609040603,-151.0,0.00012234,2]
[420836242,1776609040612,-4217.0,0.00012329,2]
[420836244,1776609040621,-500.0,0.0001236,2]
[420836246,1776609040630,-433.0,0.00012528,2]
[420836248,1776609040640,-2351.0,0.00012569,2]
[420836250,1776609040650,-200.0,0.00012629,2]
[420836252,1776609040660,-500.0,0.00012634,2]
[420836254,1776609040670,-501.98527228,0.00012668,2]
[420836255,1776609040679,-503.9209333,0.00012668,2]
[420836256,1776609040689,-1500.0,0.00012668,2]
[420836257,1776609040698,-500.0,0.00012908,2]
[420836258,1776609040708,-150.0,0.00012948,2]
[420836259,1776609040717,-578.20924308,0.00013051,2]
[420836260,1776609040726,-194.72792766,0.00013051,2]
[420836262,1776609040736,-500.0,0.00013051,2]
[420836264,1776609040746,-670.58624095,0.00013051,2]
[420836266,1776609040755,-771.01748645,0.00013051,2]
[420836267,1776609040765,-194.72792766,0.00013051,2]
[420836268,1776609040775,-200.0,0.00013051,2]
[420836269,1776609040784,-160.46489528,0.00013051,2]